[Event "Titled Tuesday Blitz January 03 Late 2023"]
[White "Peatman, Carter"]
[Black "Kobalia, Mikhail"]
[WhiteFideId "2096480"]
[BlackFideId "4119150"]
[WhiteElo "1998"]
[BlackElo "2578"]
[Result "0-1"]
[Round "01"]
[TimeControl "180+2"]
[Date "2023.01.03"]
[WhiteClock "0:01:31"]
[BlackClock "0:01:40"]

1. d4 {[%clk 0:02:51]}  d5 {[%clk 0:02:56]} 2. Bf4 {[%clk 0:02:48]}  c5 {[%clk 0:02:55]} 3. e3 {[%clk 0:02:48]}  cxd4 {[%clk 0:02:55]} 4. exd4 {[%clk 0:02:48]}  Nc6 {[%clk 0:02:56]} 5. c3 {[%clk 0:02:49]}  Nf6 {[%clk 0:02:54]} 6. Bd3 {[%clk 0:02:48]}  Bg4 {[%clk 0:02:54]} 7. Qb3 {[%clk 0:02:48]}  Qd7 {[%clk 0:02:54]} 8. Nd2 {[%clk 0:02:46]}  e6 {[%clk 0:02:55]} 9. Ngf3 {[%clk 0:02:46]}  Bd6 {[%clk 0:02:55]} 10. Bxd6 {[%clk 0:02:45]}  Qxd6 {[%clk 0:02:55]} 11. O-O {[%clk 0:02:40]}  O-O {[%clk 0:02:55]} 12. Rfe1 {[%clk 0:02:40]}  Qc7 {[%clk 0:02:55]} 13. Ne5 {[%clk 0:02:39]}  Nxe5 {[%clk 0:02:53]} 14. Rxe5 {[%clk 0:02:40]}  Rab8 {[%clk 0:02:43]} 15. a4 {[%clk 0:02:38]}  Bh5 {[%clk 0:02:28]} 16. Qc2 {[%clk 0:02:35]}  Bg6 {[%clk 0:02:26]} 17. Bxg6 {[%clk 0:02:36]}  hxg6 {[%clk 0:02:26]} 18. Qd3 {[%clk 0:02:22]}  Ng4 {[%clk 0:02:22]} 19. Ree1 {[%clk 0:01:59]}  Qxh2+ {[%clk 0:02:18]} 20. Kf1 {[%clk 0:02:00]}  Qh1+ {[%clk 0:02:16]} 21. Ke2 {[%clk 0:02:00]}  Qxg2 {[%clk 0:02:17]} 22. Rf1 {[%clk 0:01:53]}  e5 {[%clk 0:02:07]} 23. dxe5 {[%clk 0:01:50]}  Rfe8 {[%clk 0:02:03]} 24. Nf3 {[%clk 0:01:46]}  Nxe5 {[%clk 0:02:00]} 25. Nxe5 {[%clk 0:01:46]}  Rxe5+ {[%clk 0:02:01]} 26. Kd2 {[%clk 0:01:47]}  Rbe8 {[%clk 0:01:57]} 27. Rad1 {[%clk 0:01:43]}  Rf5 {[%clk 0:01:49]} 28. Kc1 {[%clk 0:01:39]}  Rxf2 {[%clk 0:01:49]} 29. Rxf2 {[%clk 0:01:37]}  Qxf2 {[%clk 0:01:48]} 30. Qxd5 {[%clk 0:01:38]}  Qf4+ {[%clk 0:01:47]} 31. Kb1 {[%clk 0:01:36]}  Qxa4 {[%clk 0:01:43]} 32. Rf1 {[%clk 0:01:36]}  Qe4+ {[%clk 0:01:42]} 33. Qxe4 {[%clk 0:01:34]}  Rxe4 {[%clk 0:01:43]} 34. Kc2 {[%clk 0:01:34]}  g5 {[%clk 0:01:41]} 35. Kd3 {[%clk 0:01:34]}  Re7 {[%clk 0:01:41]} 36. b4 {[%clk 0:01:33]}  a6 {[%clk 0:01:41]} 37. Rf5 {[%clk 0:01:31]}  f6 {[%clk 0:01:40]} 0-1


[Site "https://www.chess.com"]

[Event "Titled Tuesday Blitz January 03 Late 2023"]
[White "Strahov, Andrej"]
[Black "Avila Pavas, Santiago"]
[WhiteFideId "4165489"]
[BlackFideId "4437128"]
[WhiteElo "2398"]
[BlackElo "2522"]
[Result "0-1"]
[Round "01"]
[TimeControl "180+2"]
[Date "2023.01.03"]
[WhiteClock "0:00:21"]
[BlackClock "0:00:33"]

1. d4 {[%clk 0:02:54]}  Nf6 {[%clk 0:03:00]} 2. Nf3 {[%clk 0:02:55]}  e6 {[%clk 0:03:00]} 3. g3 {[%clk 0:02:55]}  d5 {[%clk 0:03:00]} 4. Bg2 {[%clk 0:02:56]}  b5 {[%clk 0:03:00]} 5. a4 {[%clk 0:02:55]}  b4 {[%clk 0:03:00]} 6. c4 {[%clk 0:02:55]}  bxc3 {[%clk 0:03:01]} 7. bxc3 {[%clk 0:02:55]}  c5 {[%clk 0:03:00]} 8. O-O {[%clk 0:02:52]}  Nbd7 {[%clk 0:03:00]} 9. c4 {[%clk 0:02:52]}  Ba6 {[%clk 0:02:46]} 10. cxd5 {[%clk 0:02:49]}  Nxd5 {[%clk 0:02:46]} 11. Re1 {[%clk 0:01:58]}  cxd4 {[%clk 0:02:36]} 12. Nxd4 {[%clk 0:01:50]}  Rc8 {[%clk 0:02:36]} 13. e4 {[%clk 0:01:36]}  Nb4 {[%clk 0:02:36]} 14. Ba3 {[%clk 0:01:33]}  Qb6 {[%clk 0:02:13]} 15. a5 {[%clk 0:01:13]}  Qxa5 {[%clk 0:01:55]} 16. Nd2 {[%clk 0:01:09]}  Qb6 {[%clk 0:01:52]} 17. N2f3 {[%clk 0:00:53]}  Bb7 {[%clk 0:01:29]} 18. Qa4 {[%clk 0:00:29]}  a5 {[%clk 0:01:29]} 19. Rad1 {[%clk 0:00:29]}  Bc5 {[%clk 0:01:21]} 20. Nxe6 {[%clk 0:00:26]}  Qxe6 {[%clk 0:01:21]} 21. Ng5 {[%clk 0:00:24]}  Qc6 {[%clk 0:01:09]} 22. Qb3 {[%clk 0:00:24]}  O-O {[%clk 0:01:04]} 23. Bb2 {[%clk 0:00:24]}  h6 {[%clk 0:00:41]} 24. Bh3 {[%clk 0:00:24]}  Rc7 {[%clk 0:00:37]} 25. Nxf7 {[%clk 0:00:20]}  Rxf7 {[%clk 0:00:38]} 26. Be6 {[%clk 0:00:20]}  Nf8 {[%clk 0:00:35]} 27. Bc4 {[%clk 0:00:20]}  Bxf2+ {[%clk 0:00:33]} 28. Kg2 {[%clk 0:00:21]}  Qxc4 {[%clk 0:00:33]} 0-1


[Site "https://www.chess.com"]

[Event "Titled Tuesday Blitz January 03 Late 2023"]
[White "Rustemov, Alexander"]
[Black "Mazurkiewicz, Michal"]
[WhiteFideId "4119002"]
[BlackFideId "1124943"]
[WhiteElo "2525"]
[BlackElo "2145"]
[Result "1-0"]
[Round "01"]
[TimeControl "180+2"]
[Date "2023.01.03"]
[WhiteClock "0:01:13"]
[BlackClock "0:00:19"]

1. d4 {[%clk 0:03:00]}  Nf6 {[%clk 0:02:59]} 2. c4 {[%clk 0:03:01]}  e5 {[%clk 0:02:59]} 3. dxe5 {[%clk 0:02:59]}  Ng4 {[%clk 0:02:58]} 4. Bf4 {[%clk 0:02:58]}  Nc6 {[%clk 0:02:57]} 5. Nf3 {[%clk 0:02:58]}  Bb4+ {[%clk 0:02:57]} 6. Nbd2 {[%clk 0:02:58]}  Qe7 {[%clk 0:02:55]} 7. e3 {[%clk 0:02:58]}  Ngxe5 {[%clk 0:02:53]} 8. Nxe5 {[%clk 0:02:58]}  Nxe5 {[%clk 0:02:53]} 9. Be2 {[%clk 0:02:58]}  a5 {[%clk 0:02:50]} 10. O-O {[%clk 0:02:57]}  O-O {[%clk 0:02:50]} 11. Nb3 {[%clk 0:02:46]}  a4 {[%clk 0:02:41]} 12. a3 {[%clk 0:02:46]}  axb3 {[%clk 0:02:31]} 13. axb4 {[%clk 0:02:46]}  Rxa1 {[%clk 0:02:31]} 14. Qxa1 {[%clk 0:02:46]}  Ng6 {[%clk 0:02:25]} 15. Bxc7 {[%clk 0:02:43]}  Qxb4 {[%clk 0:02:25]} 16. Rd1 {[%clk 0:02:34]}  Re8 {[%clk 0:02:24]} 17. Bd6 {[%clk 0:02:30]}  Qb6 {[%clk 0:02:18]} 18. Qa3 {[%clk 0:02:28]}  Nh4 {[%clk 0:01:52]} 19. c5 {[%clk 0:02:23]}  Qc6 {[%clk 0:01:52]} 20. Bf1 {[%clk 0:02:16]}  b6 {[%clk 0:01:45]} 21. Bg3 {[%clk 0:02:03]}  Nf5 {[%clk 0:01:42]} 22. cxb6 {[%clk 0:01:57]}  Nxg3 {[%clk 0:01:37]} 23. hxg3 {[%clk 0:01:56]}  Qxb6 {[%clk 0:01:38]} 24. Rd3 {[%clk 0:01:52]}  Bb7 {[%clk 0:01:20]} 25. Rxb3 {[%clk 0:01:51]}  Qc6 {[%clk 0:01:21]} 26. Qa7 {[%clk 0:01:47]}  Ba8 {[%clk 0:01:09]} 27. Rb8 {[%clk 0:01:45]}  d6 {[%clk 0:01:10]} 28. b4 {[%clk 0:01:35]}  Rc8 {[%clk 0:00:32]} 29. b5 {[%clk 0:01:31]}  Qe8 {[%clk 0:00:32]} 30. Rxc8 {[%clk 0:01:29]}  Qxc8 {[%clk 0:00:33]} 31. b6 {[%clk 0:01:29]}  Qb7 {[%clk 0:00:19]} 32. f3 {[%clk 0:01:15]}  Qxa7 {[%clk 0:00:17]} 33. bxa7 {[%clk 0:01:14]}  Kf8 {[%clk 0:00:18]} 34. e4 {[%clk 0:01:13]}  Ke7 {[%clk 0:00:19]} 35. Bc4 {[%clk 0:01:13]}  f6 {[%clk 0:00:19]} 36. Bd5 {[%clk 0:01:13]} 1-0


[Site "https://www.chess.com"]

[Event "Titled Tuesday Blitz January 03 Late 2023"]
[White "Kadric, Denis"]
[Black "Keller, Peter"]
[WhiteFideId "14403803"]
[BlackFideId "1272105"]
[WhiteElo "2601"]
[BlackElo "2358"]
[Result "1-0"]
[Round "01"]
[TimeControl "180+2"]
[Date "2023.01.03"]
[WhiteClock "0:02:54"]
[BlackClock "0:02:21"]

1. e4 {[%clk 0:02:59]}  e5 {[%clk 0:02:56]} 2. Nf3 {[%clk 0:02:59]}  Nc6 {[%clk 0:02:57]} 3. Bc4 {[%clk 0:02:59]}  Nf6 {[%clk 0:02:57]} 4. d3 {[%clk 0:02:59]}  Bc5 {[%clk 0:02:57]} 5. O-O {[%clk 0:02:59]}  O-O {[%clk 0:02:53]} 6. h3 {[%clk 0:03:00]}  d6 {[%clk 0:02:53]} 7. c3 {[%clk 0:03:00]}  a5 {[%clk 0:02:48]} 8. Re1 {[%clk 0:03:00]}  h6 {[%clk 0:02:48]} 9. d4 {[%clk 0:03:00]}  Bb6 {[%clk 0:02:40]} 10. Be3 {[%clk 0:03:00]}  Re8 {[%clk 0:02:25]} 11. dxe5 {[%clk 0:02:59]}  Bxe3 {[%clk 0:02:22]} 12. exf6 {[%clk 0:02:59]}  Bxf2+ {[%clk 0:02:20]} 13. Kxf2 {[%clk 0:02:59]}  Qxf6 {[%clk 0:02:21]} 14. Kg1 {[%clk 0:02:54]} 1-0


[Site "https://www.chess.com"]

[Event "Titled Tuesday Blitz January 03 Late 2023"]
[White "Martin Duque, Jesus"]
[Black "Dourerassou, Jonathan"]
[WhiteFideId "2208954"]
[BlackFideId "628050"]
[WhiteElo "2386"]
[BlackElo "2414"]
[Result "1-0"]
[Round "01"]
[TimeControl "180+2"]
[Date "2023.01.03"]
[WhiteClock "0:01:28"]
[BlackClock "0:01:03"]

1. Nf3 {[%clk 0:02:54]}  Nf6 {[%clk 0:02:58]} 2. b3 {[%clk 0:02:54]}  g6 {[%clk 0:02:59]} 3. Bb2 {[%clk 0:02:53]}  Bg7 {[%clk 0:02:59]} 4. g3 {[%clk 0:02:52]}  O-O {[%clk 0:02:57]} 5. Bg2 {[%clk 0:02:52]}  d6 {[%clk 0:02:58]} 6. d4 {[%clk 0:02:52]}  Nbd7 {[%clk 0:02:57]} 7. O-O {[%clk 0:02:44]}  c5 {[%clk 0:02:58]} 8. c4 {[%clk 0:02:43]}  cxd4 {[%clk 0:02:58]} 9. Nxd4 {[%clk 0:02:44]}  Nc5 {[%clk 0:02:58]} 10. Nc3 {[%clk 0:02:42]}  Rb8 {[%clk 0:02:58]} 11. Rc1 {[%clk 0:02:42]}  a6 {[%clk 0:02:58]} 12. e3 {[%clk 0:02:39]}  Bg4 {[%clk 0:02:57]} 13. Qd2 {[%clk 0:02:38]}  Bd7 {[%clk 0:02:52]} 14. Rfd1 {[%clk 0:02:34]}  Re8 {[%clk 0:02:52]} 15. h3 {[%clk 0:02:29]}  Qa5 {[%clk 0:02:50]} 16. a3 {[%clk 0:02:25]}  Qb6 {[%clk 0:02:47]} 17. b4 {[%clk 0:02:25]}  Ne6 {[%clk 0:02:47]} 18. Nd5 {[%clk 0:02:24]}  Nxd5 {[%clk 0:02:45]} 19. Nxe6 {[%clk 0:02:16]}  Bxb2 {[%clk 0:02:29]} 20. Qxb2 {[%clk 0:02:13]}  Bxe6 {[%clk 0:02:29]} 21. Bxd5 {[%clk 0:02:06]}  Bxh3 {[%clk 0:02:26]} 22. c5 {[%clk 0:02:05]}  dxc5 {[%clk 0:02:25]} 23. Rxc5 {[%clk 0:01:58]}  Rbd8 {[%clk 0:02:24]} 24. Rdc1 {[%clk 0:01:54]}  h5 {[%clk 0:02:02]} 25. Qe5 {[%clk 0:01:53]}  Rd6 {[%clk 0:01:48]} 26. Rc7 {[%clk 0:01:49]}  Be6 {[%clk 0:01:30]} 27. Rxb7 {[%clk 0:01:44]}  Qd8 {[%clk 0:01:29]} 28. Bg2 {[%clk 0:01:41]}  Rd1+ {[%clk 0:01:28]} 29. Rxd1 {[%clk 0:01:42]}  Qxd1+ {[%clk 0:01:29]} 30. Kh2 {[%clk 0:01:43]}  Qc2 {[%clk 0:01:23]} 31. Qf4 {[%clk 0:01:41]}  Rd8 {[%clk 0:01:19]} 32. Rxe7 {[%clk 0:01:40]}  Rd2 {[%clk 0:01:16]} 33. Qf6 {[%clk 0:01:39]}  Qc8 {[%clk 0:01:10]} 34. Bh3 {[%clk 0:01:28]}  Bxh3 {[%clk 0:01:04]} 35. Qxf7+ {[%clk 0:01:28]}  Kh8 {[%clk 0:01:03]} 36. Qh7# {[%clk 0:01:28]} 1-0


[Site "https://www.chess.com"]

[Event "Titled Tuesday Blitz January 03 Late 2023"]
[White "Kosteniuk, Alexandra"]
[Black "Moreno Perez, Tobias Sebastian"]
[WhiteFideId "4128125"]
[BlackFideId "186716"]
[WhiteElo "2535"]
[BlackElo "2256"]
[Result "1/2-1/2"]
[Round "01"]
[TimeControl "180+2"]
[Date "2023.01.03"]
[WhiteClock "0:00:33"]
[BlackClock "0:00:17"]

1. d4 {[%clk 0:02:59]}  d5 {[%clk 0:02:58]} 2. Nf3 {[%clk 0:02:57]}  Nf6 {[%clk 0:02:58]} 3. c4 {[%clk 0:02:57]}  c6 {[%clk 0:02:58]} 4. cxd5 {[%clk 0:02:55]}  cxd5 {[%clk 0:02:57]} 5. Nc3 {[%clk 0:02:56]}  Nc6 {[%clk 0:02:57]} 6. Bf4 {[%clk 0:02:54]}  a6 {[%clk 0:02:53]} 7. Rc1 {[%clk 0:02:50]}  Bf5 {[%clk 0:02:51]} 8. e3 {[%clk 0:02:47]}  Rc8 {[%clk 0:02:51]} 9. Ne5 {[%clk 0:02:41]}  Ne4 {[%clk 0:02:39]} 10. Qb3 {[%clk 0:02:13]}  Nxc3 {[%clk 0:02:28]} 11. Rxc3 {[%clk 0:02:08]}  Nxe5 {[%clk 0:02:25]} 12. Bxe5 {[%clk 0:02:08]}  Rxc3 {[%clk 0:02:21]} 13. bxc3 {[%clk 0:02:08]}  Qd7 {[%clk 0:02:18]} 14. a4 {[%clk 0:02:03]}  e6 {[%clk 0:02:13]} 15. Be2 {[%clk 0:02:02]}  Be7 {[%clk 0:02:12]} 16. Bxg7 {[%clk 0:01:58]}  Rg8 {[%clk 0:02:12]} 17. Be5 {[%clk 0:01:58]}  Rxg2 {[%clk 0:02:12]} 18. Bg3 {[%clk 0:01:58]}  Be4 {[%clk 0:01:41]} 19. Rf1 {[%clk 0:01:54]}  h5 {[%clk 0:01:37]} 20. Bxh5 {[%clk 0:01:45]}  Bd6 {[%clk 0:01:26]} 21. Be2 {[%clk 0:01:36]}  Bxg3 {[%clk 0:01:25]} 22. hxg3 {[%clk 0:01:37]}  Qc7 {[%clk 0:01:13]} 23. Rh1 {[%clk 0:01:24]}  Kd7 {[%clk 0:01:05]} 24. Rh4 {[%clk 0:01:08]}  Rg1+ {[%clk 0:01:03]} 25. Kd2 {[%clk 0:01:08]}  Rb1 {[%clk 0:00:55]} 26. Qa3 {[%clk 0:00:59]}  Qb6 {[%clk 0:00:49]} 27. Rf4 {[%clk 0:00:50]}  Qb2+ {[%clk 0:00:16]} 28. Qxb2 {[%clk 0:00:49]}  Rxb2+ {[%clk 0:00:17]} 29. Ke1 {[%clk 0:00:41]}  Rb1+ {[%clk 0:00:17]} 30. Kd2 {[%clk 0:00:41]}  Rb2+ {[%clk 0:00:17]} 31. Ke1 {[%clk 0:00:35]}  Rb1+ {[%clk 0:00:16]} 32. Kd2 {[%clk 0:00:33]}  Rb2+ {[%clk 0:00:17]} 1/2-1/2


[Site "https://www.chess.com"]

[Event "Titled Tuesday Blitz January 03 Late 2023"]
[White "Vega Gutierrez, Sabrina"]
[Black "Erdogdu, Mert"]
[WhiteFideId "2219026"]
[BlackFideId "6301495"]
[WhiteElo "2377"]
[BlackElo "2413"]
[Result "1/2-1/2"]
[Round "01"]
[TimeControl "180+2"]
[Date "2023.01.03"]
[WhiteClock "0:00:09"]
[BlackClock "0:00:12"]

1. e4 {[%clk 0:03:00]}  c5 {[%clk 0:02:59]} 2. Nf3 {[%clk 0:03:01]}  d6 {[%clk 0:03:00]} 3. d4 {[%clk 0:03:01]}  cxd4 {[%clk 0:03:00]} 4. Qxd4 {[%clk 0:03:02]}  Nc6 {[%clk 0:02:59]} 5. Bb5 {[%clk 0:03:02]}  Bd7 {[%clk 0:03:00]} 6. Bxc6 {[%clk 0:03:03]}  Bxc6 {[%clk 0:03:01]} 7. Nc3 {[%clk 0:03:04]}  Nf6 {[%clk 0:03:01]} 8. Bg5 {[%clk 0:03:04]}  e6 {[%clk 0:03:02]} 9. O-O-O {[%clk 0:03:04]}  Be7 {[%clk 0:03:02]} 10. Qd3 {[%clk 0:03:05]}  Qa5 {[%clk 0:02:59]} 11. h4 {[%clk 0:03:04]}  h6 {[%clk 0:02:55]} 12. Bd2 {[%clk 0:03:04]}  Qa6 {[%clk 0:02:54]} 13. Qxa6 {[%clk 0:03:01]}  bxa6 {[%clk 0:02:55]} 14. Rhe1 {[%clk 0:02:57]}  O-O {[%clk 0:02:46]} 15. Nd4 {[%clk 0:02:57]}  Bb7 {[%clk 0:02:44]} 16. f3 {[%clk 0:02:57]}  d5 {[%clk 0:02:34]} 17. g4 {[%clk 0:02:16]}  dxe4 {[%clk 0:02:32]} 18. g5 {[%clk 0:02:16]}  hxg5 {[%clk 0:02:25]} 19. hxg5 {[%clk 0:02:17]}  Nh7 {[%clk 0:02:12]} 20. g6 {[%clk 0:02:15]}  Nf6 {[%clk 0:02:00]} 21. gxf7+ {[%clk 0:02:09]}  Rxf7 {[%clk 0:01:54]} 22. fxe4 {[%clk 0:02:03]}  e5 {[%clk 0:01:21]} 23. Nf5 {[%clk 0:02:00]}  Bb4 {[%clk 0:01:21]} 24. Rg1 {[%clk 0:01:41]}  Rd7 {[%clk 0:01:12]} 25. Bh6 {[%clk 0:01:30]}  Rxd1+ {[%clk 0:00:56]} 26. Kxd1 {[%clk 0:01:09]}  Rd8+ {[%clk 0:00:51]} 27. Ke2 {[%clk 0:01:08]}  Rd7 {[%clk 0:00:43]} 28. Bxg7 {[%clk 0:01:02]}  Nxe4 {[%clk 0:00:29]} 29. Bxe5+ {[%clk 0:00:50]}  Kf7 {[%clk 0:00:27]} 30. Rg7+ {[%clk 0:00:32]}  Ke6 {[%clk 0:00:27]} 31. Rxd7 {[%clk 0:00:31]}  Kxd7 {[%clk 0:00:26]} 32. Nxe4 {[%clk 0:00:30]}  Bxe4 {[%clk 0:00:27]} 33. Ne3 {[%clk 0:00:30]}  Bc5 {[%clk 0:00:23]} 34. c3 {[%clk 0:00:26]}  Kc6 {[%clk 0:00:20]} 35. Bd4 {[%clk 0:00:23]}  Bb6 {[%clk 0:00:20]} 36. Nc4 {[%clk 0:00:22]}  Bd5 {[%clk 0:00:17]} 37. Ne5+ {[%clk 0:00:18]}  Kb7 {[%clk 0:00:17]} 38. b3 {[%clk 0:00:18]}  Be6 {[%clk 0:00:16]} 39. Ke3 {[%clk 0:00:18]}  a5 {[%clk 0:00:16]} 40. Ke4 {[%clk 0:00:18]}  Bg8 {[%clk 0:00:16]} 41. c4 {[%clk 0:00:17]}  Bh7+ {[%clk 0:00:16]} 42. Ke3 {[%clk 0:00:17]}  Bb1 {[%clk 0:00:17]} 43. a3 {[%clk 0:00:16]}  Ba2 {[%clk 0:00:17]} 44. b4 {[%clk 0:00:15]}  axb4 {[%clk 0:00:17]} 45. axb4 {[%clk 0:00:16]}  Bc7 {[%clk 0:00:18]} 46. c5 {[%clk 0:00:15]}  Bd5 {[%clk 0:00:17]} 47. Nd3 {[%clk 0:00:14]}  a6 {[%clk 0:00:16]} 48. Be5 {[%clk 0:00:14]}  Bd8 {[%clk 0:00:16]} 49. Kd4 {[%clk 0:00:13]}  Bg2 {[%clk 0:00:16]} 50. Nf4 {[%clk 0:00:14]}  Bf1 {[%clk 0:00:16]} 51. Ne6 {[%clk 0:00:14]}  Bh4 {[%clk 0:00:15]} 52. Kd5 {[%clk 0:00:11]}  Bg2+ {[%clk 0:00:14]} 53. Kd6 {[%clk 0:00:11]}  Bf3 {[%clk 0:00:12]} 54. Nd4 {[%clk 0:00:11]}  Bg2 {[%clk 0:00:11]} 55. c6+ {[%clk 0:00:10]}  Kc8 {[%clk 0:00:11]} 56. Nf5 {[%clk 0:00:09]}  Bd8 {[%clk 0:00:09]} 57. Ne3 {[%clk 0:00:09]}  Bc7+ {[%clk 0:00:08]} 58. Ke6 {[%clk 0:00:08]}  Bh3+ {[%clk 0:00:06]} 59. Kd5 {[%clk 0:00:07]}  Bb6 {[%clk 0:00:02]} 60. Bd4 {[%clk 0:00:04]}  Bd8 {[%clk 0:00:02]} 61. Nc4 {[%clk 0:00:04]}  Bg5 {[%clk 0:00:02]} 62. Be5 {[%clk 0:00:03]}  Bd8 {[%clk 0:00:02]} 63. Nd6+ {[%clk 0:00:03]}  Kc7 {[%clk 0:00:02]} 64. Nf7+ {[%clk 0:00:03]}  Kc8 {[%clk 0:00:03]} 65. Nd6+ {[%clk 0:00:04]}  Kc7 {[%clk 0:00:03]} 66. Ne8+ {[%clk 0:00:04]}  Kc8 {[%clk 0:00:04]} 67. Kc5 {[%clk 0:00:03]}  Be7+ {[%clk 0:00:04]} 68. Nd6+ {[%clk 0:00:04]}  Kc7 {[%clk 0:00:04]} 69. b5 {[%clk 0:00:03]}  Bg2 {[%clk 0:00:04]} 70. b6+ {[%clk 0:00:03]}  Kd8 {[%clk 0:00:05]} 71. b7 {[%clk 0:00:03]}  Kc7 {[%clk 0:00:04]} 72. b8=Q+ {[%clk 0:00:02]}  Kxb8 {[%clk 0:00:04]} 73. Kb6 {[%clk 0:00:01]}  Bxd6 {[%clk 0:00:04]} 74. Bxd6+ {[%clk 0:00:02]}  Kc8 {[%clk 0:00:05]} 75. c7 {[%clk 0:00:02]}  Bb7 {[%clk 0:00:05]} 76. Ba3 {[%clk 0:00:03]}  Bd5 {[%clk 0:00:05]} 77. Bb4 {[%clk 0:00:04]}  Bc4 {[%clk 0:00:05]} 78. Ba3 {[%clk 0:00:05]}  Bb5 {[%clk 0:00:06]} 79. Bb4 {[%clk 0:00:06]}  Bf1 {[%clk 0:00:07]} 80. Ba5 {[%clk 0:00:06]}  Bb5 {[%clk 0:00:08]} 81. Kc5 {[%clk 0:00:07]}  Bf1 {[%clk 0:00:09]} 82. Kd6 {[%clk 0:00:07]}  Bb5 {[%clk 0:00:10]} 83. Kc5 {[%clk 0:00:08]}  Bf1 {[%clk 0:00:11]} 84. Kb6 {[%clk 0:00:09]}  Bb5 {[%clk 0:00:12]} 85. Kc5 {[%clk 0:00:09]} 1/2-1/2


[Site "https://www.chess.com"]

[Event "Titled Tuesday Blitz January 03 Late 2023"]
[White "Zeman, Matyas"]
[Black "Cristobal, Manuel"]
[WhiteFideId "364398"]
[BlackFideId "112879"]
[WhiteElo "2296"]
[BlackElo "2257"]
[Result "0-1"]
[Round "01"]
[TimeControl "180+2"]
[Date "2023.01.03"]
[WhiteClock "0:00:03"]
[BlackClock "0:01:31"]

1. d4 {[%clk 0:03:00]}  Nf6 {[%clk 0:02:59]} 2. Nf3 {[%clk 0:03:00]}  e6 {[%clk 0:02:59]} 3. Bf4 {[%clk 0:03:00]}  c5 {[%clk 0:02:58]} 4. e3 {[%clk 0:02:59]}  b6 {[%clk 0:02:58]} 5. Nbd2 {[%clk 0:02:59]}  Bb7 {[%clk 0:02:58]} 6. Bd3 {[%clk 0:02:59]}  d6 {[%clk 0:02:58]} 7. O-O {[%clk 0:02:59]}  Nbd7 {[%clk 0:02:59]} 8. a4 {[%clk 0:02:58]}  Be7 {[%clk 0:02:59]} 9. a5 {[%clk 0:02:55]}  O-O {[%clk 0:02:58]} 10. a6 {[%clk 0:02:55]}  Bc6 {[%clk 0:02:58]} 11. c3 {[%clk 0:02:55]}  Nd5 {[%clk 0:02:57]} 12. Bg3 {[%clk 0:02:55]}  f5 {[%clk 0:02:58]} 13. e4 {[%clk 0:02:44]}  fxe4 {[%clk 0:02:56]} 14. Nxe4 {[%clk 0:02:43]}  Nf4 {[%clk 0:02:55]} 15. Bc2 {[%clk 0:02:28]}  Bd5 {[%clk 0:02:43]} 16. Re1 {[%clk 0:02:21]}  Rc8 {[%clk 0:02:36]} 17. Qd2 {[%clk 0:02:15]}  g5 {[%clk 0:02:33]} 18. dxc5 {[%clk 0:01:46]}  Nxc5 {[%clk 0:02:31]} 19. Nd4 {[%clk 0:01:43]}  e5 {[%clk 0:02:23]} 20. Nb5 {[%clk 0:01:21]}  Bxe4 {[%clk 0:02:11]} 21. Bxe4 {[%clk 0:01:19]}  Qd7 {[%clk 0:02:11]} 22. Bd5+ {[%clk 0:01:08]}  Kh8 {[%clk 0:02:10]} 23. c4 {[%clk 0:01:06]}  Nb3 {[%clk 0:02:10]} 24. Qd1 {[%clk 0:00:47]}  Nxa1 {[%clk 0:02:09]} 25. Bxf4 {[%clk 0:00:47]}  Rxf4 {[%clk 0:02:07]} 26. Qxa1 {[%clk 0:00:47]}  Rcf8 {[%clk 0:02:07]} 27. Re2 {[%clk 0:00:45]}  Bf6 {[%clk 0:02:06]} 28. Qb1 {[%clk 0:00:41]}  Bg7 {[%clk 0:02:05]} 29. b3 {[%clk 0:00:36]}  Qg4 {[%clk 0:02:02]} 30. Qd3 {[%clk 0:00:33]}  R4f6 {[%clk 0:01:51]} 31. Nxa7 {[%clk 0:00:30]}  e4 {[%clk 0:01:51]} 32. Bxe4 {[%clk 0:00:29]}  Qf4 {[%clk 0:01:48]} 33. Qd1 {[%clk 0:00:20]}  d5 {[%clk 0:01:45]} 34. cxd5 {[%clk 0:00:20]}  Ra8 {[%clk 0:01:45]} 35. d6 {[%clk 0:00:13]}  Rxd6 {[%clk 0:01:41]} 36. Qc2 {[%clk 0:00:07]}  Rxa7 {[%clk 0:01:40]} 37. Qc8+ {[%clk 0:00:07]}  Qf8 {[%clk 0:01:40]} 38. Qc2 {[%clk 0:00:06]}  Rxa6 {[%clk 0:01:38]} 39. g3 {[%clk 0:00:06]}  Ra7 {[%clk 0:01:36]} 40. Bxh7 {[%clk 0:00:06]}  Re7 {[%clk 0:01:35]} 41. Be4 {[%clk 0:00:06]}  Rde6 {[%clk 0:01:34]} 42. Qc4 {[%clk 0:00:05]}  Qe8 {[%clk 0:01:34]} 43. f3 {[%clk 0:00:05]}  g4 {[%clk 0:01:34]} 44. Qd5 {[%clk 0:00:06]}  gxf3 {[%clk 0:01:33]} 45. Qf5 {[%clk 0:00:03]}  Rxe4 {[%clk 0:01:31]} 0-1


[Site "https://www.chess.com"]